lending/lending_fUSD_20240807
["ID","MTS","AMOUNT","RATE_DAILY","PERIOD"]
[334371663,1722999035527,-2367.37,0.00010958,2]
[334371664,1722999035537,-2367.37,0.00010958,2]
[334371665,1722999035547,-2367.37,0.00010958,2]
[334371666,1722999035557,-2367.37,0.00010958,2]
[334371667,1722999035566,-2367.37,0.00010958,2]
[334371668,1722999035577,-2367.37,0.00010958,2]
[334371669,1722999035587,-2367.37,0.00010958,2]
[334371670,1722999035601,-2367.37,0.00010958,2]
[334371671,1722999035612,-2367.37,0.00010958,2]
[334371672,1722999035622,-2367.37,0.00010958,2]
[334371673,1722999035631,-2367.37,0.00010958,2]
[334371674,1722999035642,-2367.45837248,0.00010958,2]
[334371675,1722999035652,-500.0,0.00010958,2]
[334371676,1722999035662,-2491.69,0.00010958,2]
[334371677,1722999035671,-2491.69,0.00010958,2]
[334371678,1722999035682,-2491.69,0.00010958,2]
[334371679,1722999035694,-2491.69,0.00010958,2]
[334371680,1722999035704,-2491.69,0.00010958,2]
[334371681,1722999035713,-2491.69,0.00010958,2]
[334371682,1722999035722,-2491.69,0.00010958,2]
[334371683,1722999035731,-1301.57614471,0.00010958,2]
[334371684,1722999035812,-415.98592689,0.00010958,2]
[334371685,1722999035860,-298.62086198,0.00010958,2]
[334371686,1722999035873,-475.50706642,0.00010958,2]
[334371687,1722999035883,-708.74179501,0.00010958,2]
[334371688,1722999035895,-368.7704374,0.00010958,2]
[334371689,1722999035907,-1414.17776759,0.00010958,2]
[334371690,1722999035916,-1006.95215883,0.00010958,2]
[334371691,1722999035928,-911.46,0.00010958,2]
[334371693,1722999038980,-358.005,0.00010958,2]
[334371694,1722999038993,-215.27284117,0.00010958,2]
[334371695,1722999039003,-500.0,0.00010958,2]
[334371696,1722999039013,-2491.69,0.00010958,2]
[334371697,1722999039023,-225.93715883,0.00010958,2]
[334371698,1722999039035,-274.06284117,0.00010958,2]
[334371699,1722999039044,-911.07861789,0.00010958,2]
[334371700,1722999039057,-1580.61138211,0.00010958,2]
[334371702,1722999039067,-500.0,0.00010958,2]
[334371704,1722999039077,-2330.39734019,0.00010958,2]
[334371705,1722999039089,-161.29265981,0.00010958,2]
[334371706,1722999039102,-500.0,0.00010958,2]
[334371707,1722999039112,-642.96637208,0.00010958,2]
[334371708,1722999039124,-1848.72362792,0.00010958,2]
[334371709,1722999039135,-518.6676948,0.00010958,2]
[334371710,1722999039144,-331.35867728,0.00010958,2]
[334371737,1722999040407,-659.2,0.00010958,2]
[334371739,1722999040420,-1501.13132272,0.00010958,2]
[334371741,1722999040431,-2491.69,0.00010958,2]
[334371743,1722999040442,-2491.69,0.00010958,2]
[334371745,1722999040455,-2491.69,0.00010958,2]
[334371747,1722999040465,-2491.69,0.00010958,2]
[334371749,1722999040475,-2491.69,0.00010958,2]
[334371751,1722999040485,-2491.69,0.00010958,2]
[334371753,1722999040495,-2491.69,0.00010958,2]
[334371755,1722999040506,-2491.69,0.00010958,2]
[334371757,1722999040516,-2491.90459829,0.00010958,2]
[334371759,1722999040526,-500.0,0.00010958,2]
[334371761,1722999040536,-500.0,0.00010958,2]
[334371763,1722999040546,-500.0,0.00010958,2]
[334371765,1722999040556,-500.0,0.00010958,2]
[334371767,1722999040566,-331.41257393,0.00010958,2]
[334371769,1722999040576,-1942.48,0.00010958,2]
[334371771,1722999040586,-1942.48,0.00010958,2]
[334371773,1722999040598,-1942.48,0.00010958,2]
[334371775,1722999040608,-1942.48,0.00010958,2]
[334371777,1722999040618,-1942.48,0.00010958,2]
[334371779,1722999040628,-1942.48,0.00010958,2]
[334371780,1722999040638,-1942.48,0.00010958,2]
[334371782,1722999040648,-1942.48,0.00010958,2]
[334371784,1722999040658,-1942.48,0.00010958,2]
[334371786,1722999040668,-1942.48,0.00010958,2]
[334371788,1722999040678,-1942.48,0.00010958,2]
[334371790,1722999040688,-1942.48,0.00010958,2]
[334371792,1722999040698,-1942.48,0.00010958,2]
[334371794,1722999040708,-1942.48,0.00010958,2]
[334371796,1722999040717,-1942.48,0.00010958,2]
[334371798,1722999040727,-1942.48,0.00010958,2]
[334371800,1722999040736,-500.0,0.00010958,2]
[334371801,1722999040746,-1942.48,0.00010958,2]
[334371803,1722999040756,-1942.48,0.00010958,2]
[334371805,1722999040765,-1942.48,0.00010958,2]
[334371807,1722999040774,-1942.48,0.00010958,2]
[334371809,1722999040784,-1942.48,0.00010958,2]
[334371811,1722999040794,-1942.48,0.00010958,2]
[334371813,1722999040805,-779.56551586,0.00010958,2]
[334371816,1722999040823,-1162.91448414,0.00010958,2]
[334371818,1722999040834,-500.0,0.00010958,2]
[334371820,1722999040847,-337.08551586,0.00010958,2]
[334371822,1722999040859,-1605.5605813,0.00010958,2]
[334371824,1722999040869,-169.57,0.00010958,2]
[334371826,1722999040880,-500.0,0.00010958,2]
[334371828,1722999040891,-500.0,0.00010958,2]
[334371830,1722999040900,-500.0,0.00010958,2]
[334371832,1722999040910,-196.17395584,0.00010958,2]
[334371834,1722999040920,-500.0,0.00010958,2]
[334371836,1722999040930,-500.0,0.00010958,2]
[334371837,1722999040940,-500.0,0.00010958,2]
[334371839,1722999040950,-500.0,0.00010958,2]
[334371841,1722999040960,-500.0,0.00010958,2]
[334371843,1722999040969,-500.0,0.00010958,2]
[334371845,1722999040979,-500.0,0.00010958,2]
[334371847,1722999040989,-500.0,0.00010958,2]
[334371849,1722999040999,-71.85546286,0.00010958,2]
[334371854,1722999041035,-428.14453714,0.00010958,2]
[334371856,1722999041045,-500.0,0.00010958,2]
[334371858,1722999041055,-500.0,0.00010958,2]
[334371860,1722999041065,-500.0,0.00010958,2]
[334371862,1722999041075,-500.0,0.00010958,2]
[334371864,1722999041084,-500.0,0.00010958,2]
[334371866,1722999041095,-513.11,0.00010958,2]
[334371868,1722999041105,-627.61571163,0.00010958,2]
[334371870,1722999041115,-500.0,0.00010958,2]
[334371872,1722999041125,-500.0,0.00010958,2]
[334371874,1722999041135,-500.0,0.00010958,2]
[334371876,1722999041144,-148.32975123,0.00010958,2]
[334371878,1722999041157,-351.67024877,0.00010958,2]
[334371880,1722999041167,-500.0,0.00010958,2]
[334371882,1722999041176,-503.12063072,0.00010958,2]
[334371884,1722999041186,-500.0,0.00010958,2]
[334371886,1722999041196,-255.18726128,0.00010958,2]
[334371888,1722999041208,-244.81273872,0.00010958,2]
[334371890,1722999041219,-500.0,0.00010958,2]
[334371892,1722999041228,-500.0,0.00010958,2]
[334371894,1722999041238,-1341.54,0.00010958,2]
[334371896,1722999041247,-1341.54,0.00010958,2]
[334371898,1722999041258,-1341.54,0.00010958,2]
[334371900,1722999041269,-172.32543728,0.00010958,2]
[334371902,1722999041284,-327.67456272,0.00010958,2]
[334371904,1722999041293,-500.0,0.00010958,2]
[334371906,1722999041303,-393.50649091,0.00010958,2]
[334372050,1722999044331,177.49,0.00021589,30]
[334372051,1722999044356,-980.0,0.00010958,2]
[334372052,1722999044366,-166.80056203,0.00010958,2]
[334372053,1722999044379,-528.72304049,0.00010958,2]
[334372054,1722999044390,-252.50990657,0.00010958,2]
[334372055,1722999044400,-115.53055965,0.00010958,2]
[334372056,1722999044412,-384.46944035,0.00010958,2]
[334372057,1722999044422,-771.73055965,0.00010958,2]
[334372058,1722999044433,-334.58820096,0.00010958,2]
[334372059,1722999044445,-235.22123939,0.00010958,2]
[334372060,1722999044455,-330.30333561,0.00010958,2]
[334372061,1722999044468,-169.69666439,0.00010958,2]
[334372062,1722999044478,-143.5823997,0.00010958,2]
[334372063,1722999044490,-356.4176003,0.00010958,2]
[334372064,1722999044499,-673.56203024,0.00010958,2]
[334372065,1722999044512,-667.97796976,0.00010958,2]
[334372066,1722999044522,-500.0,0.00010958,2]
[334372067,1722999044532,-756.98076261,0.00010958,2]
[334372068,1722999044544,-584.55923739,0.00010958,2]
[334372069,1722999044554,-500.0,0.00010958,2]
[334372070,1722999044564,-1188.13564261,0.00010958,2]
[334372073,1722999044676,-153.40435739,0.00010958,2]
[334372075,1722999044686,-186.45564261,0.00010958,2]
[334372077,1722999044698,-313.54435739,0.00010958,2]
[334372080,1722999044709,-353.11564261,0.00010958,2]
[334372083,1722999044720,-473.28023069,0.00010958,2]
[334372086,1722999044734,-515.1441267,0.00010958,2]
[334372089,1722999044743,-500.0,0.00010958,2]
[334372092,1722999044753,-500.0,0.00010958,2]
[334372094,1722999044762,-402.15587331,0.00010958,2]
[334372096,1722999044773,-517.0,0.00010958,2]
[334372099,1722999044785,-422.38412669,0.00010958,2]
[334372100,1722999044795,-500.0,0.00010958,2]
[334372102,1722999044804,-500.0,0.00010958,2]
[334372104,1722999044814,-1341.54,0.00010958,2]
[334372106,1722999044823,-500.0,0.00010958,2]
[334372108,1722999044833,-500.0,0.00010958,2]
[334372110,1722999044843,-1341.54,0.00010958,2]
[334372112,1722999044855,-500.0,0.00010958,2]
[334372114,1722999044866,-500.0,0.00010958,2]
[334372116,1722999044876,-500.0,0.00010958,2]
[334372118,1722999044885,-500.0,0.00010958,2]
[334372120,1722999044896,-1341.54,0.00010958,2]
[334372122,1722999044905,-500.0,0.00010958,2]
[334372124,1722999044914,-1341.54,0.00010958,2]
[334372126,1722999044924,-500.0,0.00010958,2]
[334372128,1722999044934,-500.0,0.00010958,2]
[334372130,1722999044944,-1341.54,0.00010958,2]
[334372132,1722999044953,-500.0,0.00010958,2]
[334372134,1722999044963,-500.0,0.00010958,2]
[334372136,1722999044974,-1341.54,0.00010958,2]
[334372138,1722999044984,-500.0,0.00010958,2]
[334372140,1722999044994,-500.0,0.00010958,2]
[334372142,1722999045007,-1341.54,0.00010958,2]
[334372144,1722999045016,-500.0,0.00010958,2]
[334372146,1722999045026,-500.0,0.00010958,2]
[334372148,1722999045036,-1341.54,0.00010958,2]
[334372150,1722999045046,-500.0,0.00010958,2]
[334372152,1722999045056,-1341.54,0.00010958,2]
[334372154,1722999045066,-500.0,0.00010958,2]
[334372156,1722999045075,-500.0,0.00010958,2]
[334372158,1722999045085,-1341.54,0.00010958,2]
[334372160,1722999045097,-500.0,0.00010958,2]
[334372162,1722999045106,-500.0,0.00010958,2]
[334372164,1722999045116,-1341.54,0.00010958,2]
[334372166,1722999045126,-500.0,0.00010958,2]
[334372168,1722999045135,-500.0,0.00010958,2]
[334372170,1722999045145,-1341.54,0.00010958,2]
[334372172,1722999045155,-500.0,0.00010958,2]
[334372174,1722999045164,-500.0,0.00010958,2]
[334372176,1722999045174,-1341.54,0.00010958,2]
[334372179,1722999045183,-500.0,0.00010958,2]
[334372182,1722999045192,-105.12698641,0.00010958,2]
[334372186,1722999045209,-394.87301359,0.00010958,2]
[334372190,1722999045219,-481.56285563,0.00010958,2]
[334372193,1722999045231,-742.96054236,0.00010958,2]
[334372197,1722999045242,-117.12590438,0.00010958,2]
[334372200,1722999045252,-338.1625788,0.00010958,2]
[334372203,1722999045267,-161.8374212,0.00010958,2]
[334372205,1722999045277,-500.0,0.00010958,2]
[334372207,1722999045288,-500.0,0.00010958,2]
[334372209,1722999045299,-500.0,0.00010958,2]
[334372211,1722999045311,-500.0,0.00010958,2]
[334372213,1722999045321,-500.0,0.00010958,2]
[334372215,1722999045331,-500.0,0.00010958,2]
[334372217,1722999045341,-500.0,0.00010958,2]
[334372219,1722999045351,-274.6210513,0.00010958,2]
[334372221,1722999045360,-498.85903382,0.00010958,2]
[334372223,1722999045370,-500.0,0.00010958,2]
[334372225,1722999045380,-500.0,0.00010958,2]
[334372227,1722999045390,-500.0,0.00010958,2]
[334372229,1722999045399,-500.0,0.00010958,2]
[334372231,1722999045410,-492.9,0.00010958,2]
[334372233,1722999045421,-500.977106,0.00010958,2]
[334372235,1722999045432,-500.0,0.00010958,2]
[334372238,1722999045443,-499.2,0.00010958,2]
[334372240,1722999045453,-1215.5257814,0.00010958,2]
[334372242,1722999045467,-262.1742186,0.00010958,2]
[334372244,1722999045477,-1477.7,0.00010958,2]
[334372246,1722999045487,-1406.05201853,0.00010958,2]
[334372249,1722999045499,-71.64798147,0.00010958,2]
[334372251,1722999045508,-470.35201853,0.00010958,2]
[334372253,1722999045520,-527.7398926,0.00010958,2]
[334372255,1722999045531,-479.60808887,0.00010958,2]
[334372257,1722999045540,-61.94229124,0.00010958,2]
[334372259,1722999045551,-89.05770876,0.00010958,2]
[334372261,1722999045562,-608.62812124,0.00010958,2]
[334372264,1722999045575,-720.02828238,0.00010958,2]
[334372266,1722999045587,-149.04359638,0.00010958,2]
[334372268,1722999045597,-151.794238,0.00010958,2]
[334372270,1722999045607,-134.01806062,0.00010958,2]
[334372271,1722999045618,-605.70812265,0.00010958,2]
[334372298,1722999046543,-737.97381673,0.00010958,2]
[334372299,1722999046553,-178.77519076,0.00010958,2]
[334372300,1722999046565,-668.90836217,0.00010958,2]
[334372301,1722999046576,-515.811067,0.00010958,2]
[334372302,1722999046588,-114.20538007,0.00010958,2]
[334372303,1722999046601,-361.12708732,0.00010958,2]
[334372304,1722999046614,-138.87291268,0.00010958,2]
[334372305,1722999046624,-427.12233338,0.00010958,2]
[334372306,1722999046636,-412.1753019,0.00010958,2]
[334372307,1722999046649,-485.29999995,0.00010958,2]
[334372308,1722999046662,-153.10236477,0.00010958,2]
[334372309,1722999046671,-194.93842858,0.00010958,2]
[334372310,1722999046683,-257.08898764,0.00010958,2]
[334372311,1722999046695,-488.90515995,0.00010958,2]
[334372312,1722999046707,-536.76742383,0.00010958,2]
[334372313,1722999046716,-1477.7,0.00010958,2]
[334372314,1722999046725,-1477.7,0.00010958,2]
[334372315,1722999046735,-953.06998556,0.00010958,2]
[334372316,1722999046747,-524.63001444,0.00010958,2]
[334372317,1722999046756,-1477.7,0.00010958,2]
[334372318,1722999046766,-1477.7,0.00010958,2]
[334372319,1722999046776,-500.0,0.00010958,2]
[334372320,1722999046785,-1477.7,0.00010958,2]
[334372321,1722999046795,-1477.7,0.00010958,2]
[334372322,1722999046805,-364.56998556,0.00010958,2]
[334372323,1722999046817,-432.89653833,0.00010958,2]
[334372324,1722999046830,-680.23347611,0.00010958,2]
[334372325,1722999046839,-215.55639714,0.00010958,2]
[334372326,1722999046857,-499.44131326,0.00010958,2]
[334372327,1722999046872,-762.7022896,0.00010958,2]
[334372328,1722999046881,-9.4277097,0.00010958,2]
[334372329,1722999046893,-716.30002,0.00010958,2]
[334372330,1722999046905,-751.9722703,0.00010958,2]
[334372331,1722999046914,-85.96239756,0.00010958,2]
[334372332,1722999046926,-720.53499988,0.00010958,2]
[334372333,1722999046938,-671.20260256,0.00010958,2]
[334372334,1722999046948,-1477.7,0.00010958,2]
[334372335,1722999046957,-263.86521643,0.00010958,2]
[334372336,1722999046970,-306.94227167,0.00010958,2]
[334372337,1722999046982,-906.8925119,0.00010958,2]
[334372338,1722999046993,-1477.7,0.00010958,2]
[334372339,1722999047003,-1477.89527969,0.00010958,2]
[334372340,1722999047012,-500.0,0.00010958,2]
[334372341,1722999047022,-500.0,0.00010958,2]
[334372342,1722999047032,-498.74662021,0.00010958,2]
[334372343,1722999047042,-500.0,0.00010958,2]
[334372344,1722999047052,-500.0,0.00010958,2]
[334372345,1722999047061,-347.08370883,0.00010958,2]
[334372346,1722999047071,-500.0,0.00010958,2]
[334372347,1722999047081,-498.98893274,0.00010958,2]
[334372348,1722999047091,-500.0,0.00010958,2]
[334372349,1722999047104,-500.0,0.00010958,2]
[334372350,1722999047114,-460.03119741,0.00010958,2]
[334372351,1722999047127,-39.96880259,0.00010958,2]
[334372352,1722999047137,-322.91495731,0.00010958,2]
[334372353,1722999047148,-177.08504269,0.00010958,2]
[334372354,1722999047158,-500.0,0.00010958,2]
[334372355,1722999047167,-500.0,0.00010958,2]
[334372356,1722999047177,-500.0,0.00010958,2]
[334372357,1722999047187,-662.91495731,0.00010958,2]
[334372391,1722999049239,-1904.96994,9.64e-05,2]
[334372392,1722999049251,-299.07844765,9.64e-05,2]
[334372393,1722999049265,-444.70824529,9.64e-05,2]
[334372394,1722999049277,-268.25,9.64e-05,2]
[334372395,1722999049289,-1488.10046706,9.64e-05,2]
[334372396,1722999049299,-2489.24212921,0.00010858,2]
[334372397,1722999049308,-1706.34504269,0.00010958,2]
[334372398,1722999049318,-2362.57742387,0.00010958,2]
[334372399,1722999049330,-6.68257613,0.00010958,2]
[334372400,1722999049340,-500.0,0.00010958,2]
[334372401,1722999049353,-2369.26,0.00010958,2]
[334372402,1722999049363,-2369.26,0.00010958,2]
[334372403,1722999049372,-2369.26,0.00010958,2]
[334372404,1722999049381,-1229.46217689,0.00010958,2]
[334372405,1722999049393,-1139.79782311,0.00010958,2]
[334372406,1722999049402,-2369.26,0.00010958,2]
[334372407,1722999049411,-2369.26,0.00010958,2]
[334372408,1722999049420,-2369.26,0.00010958,2]
[334372409,1722999049430,-2369.26,0.00010958,2]
[334372410,1722999049441,-2369.26,0.00010958,2]
[334372416,1722999049630,-2369.26,0.00010958,2]
[334372418,1722999049640,-2369.26,0.00010958,2]
[334372420,1722999049650,-2369.26,0.00010958,2]
[334372422,1722999049659,-388.4250769,0.00010958,2]
[334372424,1722999049671,-1980.8349231,0.00010958,2]
[334372426,1722999049682,-2265.67846374,0.00010958,2]
[334372429,1722999049693,-103.58153626,0.00010958,2]
[334372431,1722999049703,-1810.89497374,0.00010958,2]
[334372433,1722999049715,-558.36502626,0.00010958,2]
[334372435,1722999049724,-2369.26,0.00010958,2]
[334372437,1722999049734,-2369.26,0.00010958,2]
[334372439,1722999049743,-2369.26,0.00010958,2]
[334372441,1722999049753,-544.64332367,0.00010958,2]
[334372443,1722999049764,-1128.75496496,0.00010958,2]
[334372445,1722999049775,-695.86171137,0.00010958,2]
[334372447,1722999049785,-302.63028263,0.00010958,2]
[334372449,1722999049796,-1110.1255479,0.00010958,2]
[334372451,1722999049807,-956.50416947,0.00010958,2]
[334372452,1722999049817,-181.10473156,0.00010958,2]
[334372453,1722999049829,-1453.49,0.00010958,2]
[334372454,1722999049868,-734.66526844,0.00010958,2]
[334372455,1722999049879,-849.22473156,0.00010958,2]
[334372456,1722999049890,-547.44,0.00010958,2]
[334372457,1722999049902,-972.7659679,0.00010958,2]
[334372458,1722999049914,-58.81116905,0.00010958,2]
[334372459,1722999049926,-441.18883095,0.00010958,2]
[334372460,1722999049937,-500.0,0.00010958,2]
[334372461,1722999049946,-500.0,0.00010958,2]
[334372462,1722999049956,-500.0,0.00010958,2]
[334372463,1722999049966,-180.06,0.00010958,2]
[334372464,1722999049975,-500.0,0.00010958,2]
[334372465,1722999049984,-237.3254274,0.00010958,2]
[334372466,1722999049994,-906.11,0.00010958,2]
[334372467,1722999050003,-906.11,0.00010958,2]
[334372468,1722999050013,-906.11,0.00010958,2]
[334372469,1722999050024,-906.11,0.00010958,2]
[334372470,1722999050034,-906.11,0.00010958,2]
[334372471,1722999050044,-906.11,0.00010958,2]
[334372472,1722999050053,-906.11,0.00010958,2]
[334372473,1722999050063,-906.11,0.00010958,2]
[334372474,1722999050072,-906.11,0.00010958,2]
[334372475,1722999050082,-845.87174874,0.00010958,2]
[334372482,1722999109954,1135.63,8.219e-05,2]
[334372489,1722999155811,202.7013921,8.219e-05,2]
[334372492,1722999169002,7533.03231696,8.219e-05,2]
[334372493,1722999176403,155.22551186,8.219e-05,2]
[334372494,1722999179733,227.67484022,8.219e-05,2]
[334372495,1722999183090,1288.18858528,8.219e-05,2]
[334372496,1722999195053,1349.54773143,8.219e-05,2]
[334372498,1722999202185,500.0,0.00024932,120]
[334372500,1722999208854,412.24520643,8.219e-05,2]
[334372503,1722999221012,783.0,0.00025,60]
[334372520,1722999288786,5000.0,0.00025,60]
[334372521,1722999298910,581.82642496,0.00025,60]
[334372526,1722999335937,500.0,0.00025,60]
[334372541,1722999443930,500.0,0.00025,60]
[334372544,1722999493051,5037.0,0.00025,60]
[334372548,1722999535929,500.0,0.00025,60]
[334372550,1722999546627,23900.0,9.376e-05,2]
[334372551,1722999577871,162.69,0.00021589,30]
[334372552,1722999580730,695.247846,9.5e-05,2]
[334372554,1722999610337,401.12503633,0.000246,30]
[334372555,1722999620819,172.8,9.441e-05,2]
[334372558,1722999655930,1149.78,8.219e-05,2]
[334372561,1722999675841,200.0,9.411e-05,2]
[334372562,1722999677894,1152.79,9.452e-05,2]
[334372563,1722999743433,532.89,9.402e-05,2]
[334372564,1722999776122,250.0,9.402e-05,2]
[334372566,1722999800243,500.0,0.00024932,120]
[334372567,1722999810979,858.61,9.415e-05,2]
[334372582,1722999880407,1961.68,9.462e-05,2]
[334372588,1722999882927,189.32,9.462e-05,2]
[334372591,1722999892536,150.0,9.504e-05,2]
[334372592,1722999908342,445.27,9.504e-05,2]
[334372593,1722999936973,211.75,9.544e-05,2]
[334372602,1723000043091,1285.48,9.409e-05,2]
[334372605,1723000060970,1903.86,9.388e-05,2]
[334372606,1723000073087,162.69,0.00021589,30]
[334372607,1723000086412,877.46,9.399e-05,2]
[334372613,1723000102752,23900.0,9.445e-05,2]
[334372614,1723000103194,709.29,9.445e-05,2]
[334372646,1723000210902,-216.92,9.582e-05,2]
[334372647,1723000210935,-300.0,9.594e-05,2]
[334372649,1723000210965,-1079.0,9.595e-05,2]
[334372650,1723000210994,-300.0,9.595e-05,2]
[334372651,1723000211031,-6258.27148993,9.595e-05,2]
[334372654,1723000211076,-6828.2193325,9.595e-05,2]
[334372683,1723000233304,-522.58091288,9.595e-05,2]
[334372684,1723000233322,-969.34144895,9.595e-05,2]
[334372685,1723000233333,-500.0,9.596e-05,2]
[334372686,1723000233343,-880.0,9.664e-05,2]
[334372687,1723000233352,-540.62661709,9.673e-05,2]
[334372688,1723000233363,-3672.22338291,9.673e-05,2]
[334372689,1723000233372,-499.99,9.75e-05,2]
[334372690,1723000233382,-648.39,9.75e-05,2]
[334372691,1723000233391,-1716.25401489,9.75e-05,2]
[334372692,1723000233402,-335.92939992,9.75e-05,2]
[334372693,1723000233413,-246.61658519,9.75e-05,2]
[334372694,1723000233424,-102.27351685,9.838e-05,2]
[334372695,1723000233435,-47.72648315,9.838e-05,2]
[334372696,1723000233444,-178.74,9.957e-05,2]
[334372697,1723000233454,-170.5,9.975e-05,2]
[334372698,1723000233463,-2.16014563,9.975e-05,2]
[334372699,1723000233475,-350.0,9.975e-05,2]
[334372700,1723000233487,-1085.07985437,9.975e-05,2]
[334372701,1723000233496,-171.36,9.984e-05,2]
[334372702,1723000233505,-484.87,9.984e-05,2]
[334372703,1723000233515,-792.22198707,0.00010175,2]
[334372704,1723000233529,-647.04,0.00010175,2]
[334372705,1723000233539,-150.0,0.00010357,2]
[334372706,1723000233548,-265.4341261,0.00010358,2]
[334372707,1723000233558,-1074.57543613,0.00010358,2]
[334372708,1723000233595,-836.596,0.00010358,2]
[334372712,1723000233606,-1656.34148106,0.00010358,2]
[334372715,1723000233618,-78.85508281,0.00010358,2]
[334372718,1723000233628,-255.65238981,0.00010358,2]
[334372721,1723000233644,-572.17482022,0.00010358,2]
[334372724,1723000233655,-172.17278997,0.00010358,2]
[334372727,1723000233664,-1625.2326968,0.00010358,2]
[334372730,1723000233676,-874.7673032,0.00010358,2]
[334372733,1723000233686,-1149.78,0.00010446,2]
[334372736,1723000233695,-1321.13092741,0.00010458,2]
[334372758,1723000238782,-30743.60152304,0.00010458,2]
[334372759,1723000238794,-637.27572925,0.00010458,2]
[334372760,1723000238806,-11389.50292325,0.00010458,2]
[334372761,1723000239530,-846.16550543,0.00010458,2]
[334372847,1723000240382,-6760.47595918,0.00010458,2]
[334372851,1723000240394,-42622.46520302,0.00010458,2]
[334372854,1723000240413,-504.3514221,0.00010458,2]
[334372856,1723000240426,-5175.03080732,0.00010458,2]
[334372858,1723000240436,-297.0689,0.00010458,2]
[334372860,1723000240447,-596.46364473,0.00010458,2]
[334372862,1723000240460,-1328.83403623,0.00010458,2]
[334372865,1723000240472,-1941.66631904,0.00010458,2]
[334372867,1723000240482,-748.99114273,0.00010458,2]
[334372869,1723000240494,-445.34091486,0.00010458,2]
[334372871,1723000240505,-465.0766574,0.00010458,2]
[334372893,1723000240712,-234113.79688501,0.00010458,2]
[334372896,1723000240724,-28487.068,0.00010458,2]
[334372899,1723000240735,-5988.006,0.00010458,2]
[334372902,1723000240744,-14925.12,0.00010475,2]
[334372905,1723000240753,-265.43412608,0.00010483,2]
[334372908,1723000240763,-420.0,0.00010553,2]
[334372911,1723000240774,-253.0,0.00010555,2]
[334372914,1723000240784,-265.43412608,0.00010608,2]
[334372917,1723000240794,-265.43412608,0.00010733,2]
[334372920,1723000240804,-211.75,0.00010737,2]
[334372924,1723000240814,-12817.79331306,0.000108,2]
[334372927,1723000240828,-1256.0,0.00010817,2]
[334372930,1723000240838,-555.0,0.00010817,2]
[334372933,1723000240847,-184.787,0.00010817,2]
[334372936,1723000240857,-446.0,0.00010817,2]
[334372938,1723000240867,-1344.0,0.00010817,2]
[334372940,1723000240876,-813.0,0.00010817,2]
[334372942,1723000240886,-551.0,0.00010817,2]
[334372944,1723000240896,-150.547,0.00010817,2]
[334372946,1723000240905,-1206.751,0.00010819,2]
[334372948,1723000240915,-3289.0,0.00010819,2]
[334372950,1723000240924,-151.325,0.00010819,2]
[334372952,1723000240933,-5983.0571,0.00010822,2]
[334372954,1723000240943,-1204.0,0.00010828,2]
[334372956,1723000240953,-5838.0,0.00010828,2]
[334372958,1723000240962,-21743.0,0.00010828,2]
[334372960,1723000240972,-289.0,0.00010828,2]
[334372962,1723000240981,-1671.0,0.00010833,2]
[334372964,1723000240990,-5130.0,0.00010833,2]
[334372966,1723000240999,-900.805,0.00010833,2]
[334372967,1723000241008,-150.0,0.00010848,2]
[334372969,1723000241018,-404.85976,0.0001085,2]
[334372971,1723000241030,-547.16513421,0.00010851,2]
[334372973,1723000241039,-547.1651342,0.00010855,2]
[334372975,1723000241048,-479.50780051,0.00010858,2]
[334372976,1723000241058,-189.0863292,0.00010858,2]
[334372977,1723000241067,-265.43412608,0.00010858,2]
[334372978,1723000241076,-173.72523514,0.00010858,2]
[334372979,1723000241086,-547.1651342,0.00010858,2]
[334372980,1723000241097,-2233.21503504,0.00010858,2]
[334372982,1723000241107,-195.52,0.00010858,2]